fUST/lending_fUST_20260313
["ID","MTS","AMOUNT","RATE_DAILY","PERIOD"]
[408271206,1773335440953,-300.0,9.047e-05,2]
[408271208,1773335440962,-300.0,9.047e-05,2]
[408271210,1773335440971,-300.0,9.047e-05,2]
[408271212,1773335440980,-300.0,9.047e-05,2]
[408271214,1773335440990,-300.0,9.047e-05,2]
[408271216,1773335441001,-300.0,9.047e-05,2]
[408271248,1773335441287,-300.0,9.047e-05,2]
[408271250,1773335441297,-300.0,9.047e-05,2]
[408271252,1773335441306,-300.0,9.047e-05,2]
[408271253,1773335441315,-177.0,9.161e-05,2]
[408271254,1773335441325,-500.0,9.193e-05,2]
[408271256,1773335441334,-500.0,9.193e-05,2]
[408271258,1773335441343,-500.0,9.193e-05,2]
[408271259,1773335441352,-500.0,9.193e-05,2]
[408271260,1773335441362,-234.27268849,9.193e-05,2]
[408271261,1773335441371,-318.90122419,9.194e-05,2]
[408271262,1773335441380,-3580.90955487,9.194e-05,2]
[408271263,1773335441392,-3350.06204144,9.194e-05,2]
[408271264,1773335441401,-1016.26673016,9.194e-05,2]
[408271265,1773335441413,-1513.08956569,9.194e-05,2]
[408271276,1773335443367,-2002.73235953,9.194e-05,2]
[408271277,1773335443377,-2207.00997707,9.194e-05,2]
[408271278,1773335443389,-1277.19886918,9.194e-05,2]
[408271279,1773335443475,-500.0,9.194e-05,2]
[408271280,1773335443487,-575.59782127,9.194e-05,2]
[408271281,1773335443497,-4038.90217823,9.194e-05,2]
[408271310,1773335446558,-1556.26900125,9.194e-05,2]
[408271311,1773335446569,-5949.7101856,9.245e-05,2]
[408271312,1773335446579,-1000.0,9.258e-05,2]
[408271313,1773335446590,-1634.43617268,9.29e-05,2]
[408271324,1773336439086,-533.85863828,7.741e-05,2]
[408271351,1773336632305,-293.44136172,7.587e-05,2]
[408271353,1773336632315,-527.0,7.587e-05,2]
[408271355,1773336632324,-5000.0,7.664e-05,2]
[408271358,1773336632335,-150.0,7.78e-05,2]
[408271360,1773336632344,-4075.79172614,8e-05,5]
[408271362,1773336632353,-1797.0148933,8.058e-05,2]
[408271364,1773336632363,-364.09408339,8.298e-05,2]
[408271367,1773336632381,-527.0,8.5e-05,2]
[408271369,1773336632392,-300.0,8.733e-05,2]
[408271371,1773336632402,-300.0,8.733e-05,2]
[408271373,1773336632413,-37.51004926,8.734e-05,2]
[408271375,1773336632425,-300.58662455,8.734e-05,2]
[408271377,1773336632438,-514.19709927,8.734e-05,2]
[408271380,1773336632450,-712.0,8.734e-05,2]
[408271381,1773336632467,-5205.8633541,8.734e-05,2]
[408271382,1773336632477,-3021.72856524,8.734e-05,2]
[408271393,1773336638428,-5027.26088672,8.734e-05,2]
[408271395,1773336638441,-338.1733174,8.734e-05,2]
[408271397,1773336638450,-500.0,8.992e-05,2]
[408271399,1773336638459,-500.0,8.992e-05,2]
[408271401,1773336638468,-23771.02605526,8.993e-05,2]
[408271403,1773336638478,-486.24969963,9e-05,2]
[408271405,1773336638487,-1087.93682401,9e-05,2]
[408271407,1773336638496,-1520.15300161,9.037e-05,4]
[408271409,1773336638505,-501.27527013,9.053e-05,2]
[408271411,1773336638514,-490.78280854,9.053e-05,2]
[408271413,1773336638523,-637.36303042,9.053e-05,2]
[408271415,1773336638532,-500.0,9.053e-05,2]
[408271417,1773336638541,-500.0,9.053e-05,2]
[408271419,1773336638550,-710017.53624956,9.073e-05,2]
[408271420,1773336638562,-25360.4637151,9.073e-05,2]
[408271423,1773336638574,-1654.15765223,9.073e-05,2]
[408271425,1773336638585,-1211.79638914,9.073e-05,2]
[408271426,1773336638600,-435.42165357,9.073e-05,2]
[408271427,1773336638617,-323.67651381,9.073e-05,2]
[408271428,1773336638627,-8929.01571543,9.073e-05,2]
[408271429,1773336638638,-986.95716686,9.073e-05,2]
[408271472,1773336641028,-1075.08886253,9.073e-05,2]
[408271474,1773336641040,-34812.37751198,9.073e-05,2]
[408271558,1773336643617,-11910.60790869,9.073e-05,2]
[408271559,1773336644207,-1657.1318208,9.073e-05,2]
[408271568,1773336646793,-2250.23795087,9.073e-05,2]
[408271595,1773337757147,-176.31077228,7.483e-05,2]
[408271596,1773337757169,-175.451988,7.559e-05,2]
[408271597,1773337757191,-90.75240622,7.635e-05,2]
[408271598,1773337768119,-814.83668171,7.635e-05,2]
[408271631,1773337831623,-4347.14387528,7.559e-05,2]
[408271633,1773337831634,-527.0,7.559e-05,2]
[408271635,1773337831645,-150.0,7.674e-05,2]
[408271638,1773337831658,-190.610617,8.414e-05,2]
[408271640,1773337831672,-840.0,8.652e-05,2]
[408271642,1773337831683,-500.0,8.653e-05,2]
[408271644,1773337831693,-500.0,8.653e-05,2]
[408271646,1773337831703,-500.0,8.653e-05,2]
[408271648,1773337831713,-500.0,8.653e-05,2]
[408271650,1773337831723,-500.0,8.653e-05,2]
[408271652,1773337831733,-500.0,8.653e-05,2]
[408271654,1773337831744,-579.39799153,8.653e-05,2]
[408271656,1773337831756,-167.11933165,8.672e-05,2]
[408271658,1773337831766,-159.83805007,8.672e-05,2]
[408271660,1773337831777,-500.0,8.672e-05,2]
[408271662,1773337831787,-500.0,8.672e-05,2]
[408271664,1773337831798,-500.0,8.672e-05,2]
[408271666,1773337831809,-213.51413332,8.672e-05,2]
[408271866,1773337837584,-653.38129661,8.586e-05,2]
[408271867,1773337837594,-286.48586668,8.672e-05,2]
[408271868,1773337837604,-500.0,8.672e-05,2]
[408271869,1773337837614,-500.0,8.672e-05,2]
[408271870,1773337837623,-102.41762577,8.672e-05,2]
[408271871,1773337837634,-422.6212468,8.672e-05,2]
[408271872,1773337837644,-474.0,8.672e-05,2]
[408271873,1773337837653,-500.0,8.672e-05,2]
[408271874,1773337837663,-331.03787334,8.672e-05,2]
[408271875,1773337837675,-168.96212666,8.672e-05,2]
[408271876,1773337837684,-500.0,8.672e-05,2]
[408271877,1773337837694,-500.0,8.672e-05,2]
[408271878,1773337837704,-500.0,8.672e-05,2]
[408271879,1773337837713,-206.46971294,8.672e-05,2]
[408271880,1773337837725,-293.53028706,8.672e-05,2]
[408271881,1773337837734,-500.0,8.672e-05,2]
[408271882,1773337837744,-500.0,8.672e-05,2]
[408271883,1773337837753,-500.0,8.672e-05,2]
[408271884,1773337837762,-500.0,8.672e-05,2]
[408271885,1773337837771,-500.0,8.672e-05,2]
[408271886,1773337837782,-500.0,8.672e-05,2]
[408271887,1773337837792,-300.0,8.672e-05,2]
[408271888,1773337837802,-92895.02017235,8.673e-05,2]
[408271889,1773337837814,-113446.44449697,8.673e-05,2]
[408272396,1773337844923,-1580.71166212,8.586e-05,2]
[408272398,1773337844934,-15967.00849081,8.586e-05,2]
[408272431,1773337845664,-258.58443364,8.5e-05,2]
[408272432,1773337845676,-4741.41556636,8.5e-05,2]
[408272433,1773337845685,-16412.18595378,8.586e-05,2]
[408272434,1773337845696,-18705.35828407,8.586e-05,2]
[408272435,1773337845717,-180658.28952138,8.586e-05,2]
[408272436,1773337845727,-793658.53533068,8.673e-05,2]
[408272437,1773337845736,-939.54942445,8.7e-05,2]
[408272438,1773337845747,-2747.75553067,8.7e-05,2]
[408272439,1773337845755,-2510.23977772,8.7e-05,2]
[408272440,1773337845765,-2272.72402485,8.7e-05,2]
[408272441,1773337845774,-2303.39302769,8.7e-05,2]
[408272442,1773337845786,-470.98105325,8.7e-05,2]
[408272443,1773337845796,-500.0,8.753e-05,2]
[408272444,1773337845806,-500.0,8.753e-05,2]
[408272446,1773337845816,-190.610617,8.768e-05,2]
[408272447,1773337845825,-405581.61285397,8.773e-05,2]
[408272449,1773337845837,-1617.41432246,8.773e-05,2]
[408272479,1773338952134,-2718.61802318,6.849e-05,2]
[408272480,1773338952156,-73.12371257,6.884e-05,2]
[408272481,1773338958102,-76.87628743,6.884e-05,2]
[408272482,1773338958123,-382.07987263,6.953e-05,2]
[408272516,1773339031644,-518.0,6.953e-05,2]
[408272518,1773339031653,-251.659,8.401e-05,2]
[408272520,1773339031662,-1082.0,8.452e-05,2]
[408272522,1773339031672,-500.0,8.453e-05,2]
[408272524,1773339031681,-500.0,8.453e-05,2]
[408272526,1773339031690,-500.0,8.453e-05,2]
[408272528,1773339031700,-500.0,8.453e-05,2]
[408272530,1773339031709,-216.74583443,8.472e-05,2]
[408272532,1773339031718,-386.0,8.472e-05,2]
[408272534,1773339031727,-500.0,8.472e-05,2]
[408272536,1773339031736,-225.00431918,8.472e-05,2]
[408272538,1773339031745,-3790.9976829,8.473e-05,2]
[408272541,1773339031763,-11837.71879093,8.473e-05,2]
[408272543,1773339031776,-324.47130679,8.473e-05,2]
[408272546,1773339031796,-7498.06380252,8.473e-05,2]
[408272670,1773339037829,-1086.0,8.473e-05,2]
[408272714,1773339040312,-698.91,8.388e-05,2]
[408272793,1773339042999,-337.72830889,8.388e-05,2]
[408272794,1773339043022,-16.62932003,8.388e-05,2]
[408272795,1773339043034,-1033.0,8.388e-05,2]
[408272796,1773339043159,-700.0,8.388e-05,2]
[408272828,1773339046053,-2500.0,8.388e-05,2]
[408272830,1773339046064,-1142.3617184,8.388e-05,2]
[408272832,1773339046075,-23424.47013629,8.388e-05,2]
[408272836,1773339046106,-3496.68495005,8.388e-05,2]
[408272842,1773339046145,-78718.39616289,8.388e-05,2]
[408272844,1773339046154,-11530.45862699,8.473e-05,2]
[408272942,1773340171138,-2205.23319185,7.272e-05,2]
[408273003,1773340232324,-709.050005,7.272e-05,2]
[408273006,1773340232339,-2085.71680315,7.272e-05,2]
[408273008,1773340232348,-78.67121374,7.272e-05,2]
[408273010,1773340232360,-296.92009493,7.272e-05,2]
[408273219,1773340238094,-296.92009493,7.199e-05,2]
[408273220,1773340238104,-147.40869133,7.272e-05,2]
[408273221,1773340238114,-150.0,7.309e-05,2]
[408273222,1773340238124,-188.9891784,7.419e-05,2]
[408273223,1773340238134,-313.93716917,7.645e-05,2]
[408273224,1773340238143,-454.8586446,8.043e-05,2]
[408273225,1773340238153,-1072.23158785,8.203e-05,2]
[408273226,1773340238162,-300.0,8.252e-05,2]
[408273227,1773340238172,-365.0277092,8.253e-05,2]
[408273229,1773340238188,-134.9722908,8.253e-05,2]
[408273231,1773340238198,-500.0,8.253e-05,2]
[408273233,1773340238208,-500.0,8.253e-05,2]
[408273234,1773340238218,-500.0,8.253e-05,2]
[408273235,1773340238227,-500.0,8.253e-05,2]
[408273236,1773340238237,-287.28643882,8.253e-05,2]
[408273237,1773340238248,-212.71356118,8.253e-05,2]
[408273238,1773340238259,-500.0,8.253e-05,2]
[408273239,1773340238268,-1438.41222765,8.253e-05,2]
[408273240,1773340238277,-500.0,8.272e-05,2]
[408273241,1773340238286,-500.0,8.272e-05,2]
[408273242,1773340238294,-523.35623369,8.272e-05,2]
[408273243,1773340238303,-108.75394012,8.272e-05,2]
[408273244,1773340238314,-391.24605988,8.272e-05,2]
[408273245,1773340238323,-500.0,8.272e-05,2]
[408273246,1773340238333,-348.71605689,8.272e-05,2]
[408273247,1773340238342,-9854.76498886,8.273e-05,2]
[408273263,1773340245390,-3623.51827834,8.19e-05,2]
[408273265,1773340245400,-24366.48172167,8.273e-05,2]
[408273268,1773340245411,-5570.48048064,8.273e-05,2]
[408273273,1773340245451,-700.41,8.273e-05,2]
[408273275,1773340245462,-437.94669,8.273e-05,2]
[408273277,1773340245472,-18454.81538791,8.273e-05,2]
[408273289,1773340245563,-744.00654836,8.273e-05,2]
[408273291,1773340245573,-1297.21331,8.273e-05,2]
[408273294,1773340245584,-1084.78756458,8.273e-05,2]
[408273314,1773340246106,-66.00524291,8.273e-05,2]
[408273315,1773340246124,-1245.14528569,8.273e-05,2]
[408273316,1773340246137,-20540.19161825,8.273e-05,2]
[408273318,1773340246276,-12665.19392241,8.273e-05,2]
[408273323,1773340634631,2000.0,0.000102,120]
[408273453,1773341370112,-452.08275664,6.958e-05,2]
[408273454,1773341370140,-813.74896194,6.958e-05,2]
[408273455,1773341370170,-1446.66482123,6.958e-05,2]
[408273456,1773341370198,-2260.41378318,6.958e-05,2]
[408273457,1773341370227,-300.0,7.096e-05,2]
[408273458,1773341370255,-300.0,7.096e-05,2]
[408273459,1773341370284,-300.0,7.096e-05,2]
[408273460,1773341370314,-300.0,7.096e-05,2]
[408273461,1773341370342,-300.0,7.096e-05,2]
[408273462,1773341370371,-300.0,7.096e-05,2]
[408273463,1773341370400,-300.0,7.096e-05,2]
[408273464,1773341370430,-300.0,7.096e-05,2]
[408273465,1773341370458,-300.0,7.096e-05,2]
[408273466,1773341370487,-300.0,7.096e-05,2]
[408273467,1773341370518,-300.0,7.096e-05,2]
[408273468,1773341370549,-131.36216555,7.096e-05,2]
[408273510,1773341432006,-468.5569426,7.025e-05,2]
[408273512,1773341432061,-4531.4430574,7.025e-05,2]
[408273513,1773341432070,-168.63783445,7.096e-05,2]
[408273514,1773341432080,-300.0,7.096e-05,2]
[408273515,1773341432090,-300.0,7.096e-05,2]
[408273516,1773341432099,-300.0,7.096e-05,2]
[408273517,1773341432108,-520.0,7.096e-05,2]
[408273518,1773341432118,-600.0,7.237e-05,2]
[408273519,1773341432127,-150.0,7.288e-05,2]
[408273520,1773341432137,-3251.74085193,7.51e-05,2]
[408273522,1773341432146,-331.510226,7.749e-05,2]
[408273524,1773341432155,-182.36248685,7.826e-05,2]
[408273526,1773341432164,-328.25247633,7.826e-05,2]
[408273528,1773341432174,-583.55995793,7.826e-05,2]
[408273530,1773341432183,-720.0,7.961e-05,2]
[408273532,1773341432193,-500.0,8.053e-05,2]
[408273534,1773341432202,-500.0,8.053e-05,2]
[408273536,1773341432212,-500.0,8.053e-05,2]
[408273537,1773341432222,-500.0,8.053e-05,2]
[408273538,1773341432231,-500.0,8.053e-05,2]
[408273539,1773341432240,-14623.99803872,8.073e-05,2]
[408273541,1773341432746,-675.25377324,8.073e-05,2]
[408273570,1773341438240,-2070.43407132,7.992e-05,2]
[408273629,1773341440760,-814.419644,7.992e-05,2]
[408273915,1773341443647,-1020.0,7.992e-05,2]
[408273917,1773341443663,-1095.14628468,7.992e-05,2]
[408273919,1773341443673,-8322.39013313,7.992e-05,2]
[408273922,1773341443684,-1074.91166387,7.992e-05,2]
[408273924,1773341443695,-706.55138873,7.992e-05,2]
[408274114,1773341446323,-200.66804445,7.826e-05,2]
[408274115,1773341446333,-647.74948799,7.992e-05,2]
[408274116,1773341446343,-2670.5253539,8.073e-05,2]
[408274117,1773341446355,-468.6514,8.073e-05,2]
[408274157,1773342043827,-1305.03891089,5.045e-05,2]
[408274163,1773342426143,-203.29827871,4.324e-05,2]
[408274165,1773342555105,-172.855226,3.473e-05,2]
[408274166,1773342555124,-330.56035957,4.324e-05,2]
[408274167,1773342555145,-158.18285435,4.346e-05,2]
[408274168,1773342555165,-1987.54494223,4.368e-05,2]
[408274169,1773342555186,-5000.0,4.412e-05,2]
[408274170,1773342555206,-300.0,4.456e-05,2]
[408274171,1773342555227,-300.0,4.457e-05,2]
[408274172,1773342555247,-1200.0,4.457e-05,2]
[408274173,1773342555268,-8715.63686685,4.458e-05,2]
[408274176,1773342557209,-15925.84659395,4.458e-05,2]
[408274178,1773342557230,-300.0,4.546e-05,2]
[408274180,1773342557252,-300.0,4.546e-05,2]
[408274182,1773342557273,-300.0,4.546e-05,2]
[408274183,1773342557297,-300.0,4.546e-05,2]
[408274184,1773342557320,-300.0,4.546e-05,2]
[408274185,1773342557342,-300.0,4.546e-05,2]
[408274186,1773342557363,-300.0,4.546e-05,2]
[408274187,1773342557384,-300.0,4.546e-05,2]
[408274188,1773342557406,-300.0,4.546e-05,2]
[408274189,1773342557427,-300.0,4.546e-05,2]
[408274190,1773342557448,-147.58073894,4.546e-05,2]
[408274191,1773342562114,-152.41926106,4.546e-05,2]
[408274192,1773342562137,-300.0,4.546e-05,2]
[408274193,1773342562158,-300.0,4.546e-05,2]
[408274194,1773342562179,-300.0,4.546e-05,2]
[408274195,1773342562200,-300.0,4.546e-05,2]
[408274196,1773342562222,-600.0,4.636e-05,2]
[408274197,1773342562242,-420.0,4.902e-05,2]
[408274198,1773342562263,-1680.0,4.903e-05,2]
[408274199,1773342562282,-500.0,4.94e-05,2]
[408274200,1773342562302,-500.0,4.94e-05,2]
[408274201,1773342562322,-500.0,4.94e-05,2]
[408274202,1773342562341,-500.0,4.94e-05,2]
[408274203,1773342562360,-500.0,4.94e-05,2]
[408274204,1773342562380,-500.0,4.94e-05,2]
[408274205,1773342562399,-500.0,4.94e-05,2]
[408274206,1773342562420,-500.0,4.94e-05,2]
[408274207,1773342562441,-500.0,5.084e-05,2]
[408274208,1773342562462,-502.58831501,5.084e-05,2]
[408274209,1773342562482,-500.0,5.084e-05,2]
[408274210,1773342562503,-500.0,5.084e-05,2]
[408274211,1773342562524,-500.0,5.084e-05,2]
[408274212,1773342562554,-500.0,5.084e-05,2]
[408274213,1773342562582,-500.0,5.084e-05,2]
[408274214,1773342562603,-172.81596771,5.084e-05,2]
[408274215,1773342562626,-500.0,5.084e-05,2]
[408274216,1773342562657,-500.0,5.084e-05,2]
[408274217,1773342562681,-500.0,5.084e-05,2]
[408274218,1773342562701,-500.0,5.084e-05,2]
[408274219,1773342562723,-500.0,5.084e-05,2]
[408274220,1773342562744,-500.0,5.084e-05,2]
[408274221,1773342562765,-500.0,5.084e-05,2]
[408274222,1773342562787,-500.0,5.084e-05,2]
[408274223,1773342562807,-500.0,5.084e-05,2]
[408274224,1773342562829,-500.0,5.084e-05,2]
[408274225,1773342563084,-500.0,5.084e-05,2]
[408274226,1773342563112,-500.0,5.084e-05,2]
[408274227,1773342563133,-500.0,5.084e-05,2]
[408274228,1773342563154,-500.0,5.084e-05,2]
[408274229,1773342563174,-380.07551382,5.084e-05,2]
[408274230,1773342563194,-500.0,5.084e-05,2]
[408274231,1773342563216,-500.0,5.084e-05,2]
[408274232,1773342563236,-500.0,5.084e-05,2]
[408274233,1773342563258,-500.0,5.084e-05,2]
[408274234,1773342563278,-500.0,5.084e-05,2]
[408274235,1773342563300,-500.0,5.084e-05,2]
[408274236,1773342563323,-500.0,5.084e-05,2]
[408274237,1773342563343,-500.0,5.084e-05,2]
[408274238,1773342563365,-500.0,5.084e-05,2]
[408274239,1773342563386,-500.0,5.084e-05,2]
[408274240,1773342563408,-500.0,5.084e-05,2]
[408274241,1773342563429,-500.0,5.084e-05,2]
[408274242,1773342563451,-500.0,5.084e-05,2]
[408274243,1773342563472,-500.0,5.084e-05,2]
[408274244,1773342563493,-500.0,5.084e-05,2]
[408274245,1773342563516,-500.0,5.084e-05,2]
[408274246,1773342563539,-500.0,5.084e-05,2]
[408274247,1773342563559,-500.0,5.084e-05,2]
[408274248,1773342563580,-500.0,5.084e-05,2]
[408274249,1773342563602,-500.0,5.084e-05,2]
[408274250,1773342563624,-500.0,5.084e-05,2]
[408274251,1773342563646,-500.0,5.084e-05,2]
[408274252,1773342563667,-455.35912212,5.084e-05,2]
[408274253,1773342563688,-351.93056425,5.084e-05,2]
[408274254,1773342563709,-500.0,5.084e-05,2]
[408274255,1773342563730,-500.0,5.084e-05,2]
[408274256,1773342563751,-500.0,5.084e-05,2]
[408274257,1773342563773,-500.0,5.084e-05,2]
[408274258,1773342563795,-500.0,5.084e-05,2]
[408274259,1773342563818,-500.0,5.084e-05,2]
[408274260,1773342563839,-420.11409324,5.084e-05,2]
[408274261,1773342563863,-500.0,5.084e-05,2]
[408274262,1773342563884,-500.0,5.084e-05,2]
[408274263,1773342563905,-500.0,5.084e-05,2]
[408274264,1773342563928,-500.0,5.084e-05,2]
[408274265,1773342563950,-500.0,5.084e-05,2]
[408274266,1773342563973,-172.37684369,5.084e-05,2]
[408274267,1773342563995,-1290.31390926,5.085e-05,2]
[408274268,1773342564018,-720.0,5.099e-05,2]
[408274269,1773342564040,-500.0,5.2e-05,2]
[408274270,1773342564062,-900.0,5.2e-05,2]
[408274271,1773342564083,-900.0,5.2e-05,2]
[408274272,1773342564105,-500.0,5.2e-05,2]
[408274273,1773342564129,-900.0,5.2e-05,2]
[408274274,1773342564148,-500.0,5.2e-05,2]
[408274275,1773342564168,-900.0,5.2e-05,2]
[408274276,1773342564187,-500.0,5.2e-05,2]
[408274277,1773342564207,-900.0,5.2e-05,2]
[408274278,1773342564227,-900.0,5.2e-05,2]
[408274279,1773342564247,-500.0,5.2e-05,2]
[408274280,1773342564267,-900.0,5.2e-05,2]
[408274281,1773342564287,-784.21218825,5.2e-05,2]
[408274282,1773342564309,-900.0,5.2e-05,2]
[408274283,1773342564329,-900.0,5.2e-05,2]
[408274284,1773342564349,-900.0,5.2e-05,2]
[408274285,1773342564371,-900.0,5.2e-05,2]
[408274286,1773342564393,-900.0,5.2e-05,2]
[408274287,1773342564416,-1600.0,5.2e-05,2]
[408274288,1773342564438,-500.0,5.2e-05,2]
[408274289,1773342564458,-500.0,5.2e-05,2]
[408274290,1773342564479,-500.0,5.2e-05,2]
[408274291,1773342564500,-500.0,5.2e-05,2]
[408274292,1773342564520,-500.0,5.2e-05,2]
[408274293,1773342564541,-500.0,5.2e-05,2]
[408274294,1773342564560,-500.0,5.2e-05,2]
[408274295,1773342564580,-500.0,5.2e-05,2]
[408274296,1773342564600,-992.09417167,5.2e-05,2]
[408274297,1773342564620,-500.0,5.249e-05,2]
[408274298,1773342564640,-500.0,5.249e-05,2]
[408274299,1773342564659,-500.0,5.26e-05,2]
[408274300,1773342564682,-500.0,5.26e-05,2]
[408274301,1773342564702,-500.0,5.26e-05,2]
[408274302,1773342564725,-587.0,5.392e-05,2]
[408274303,1773342564744,-2351.0,5.393e-05,2]
[408274304,1773342564764,-1000.0,5.488e-05,2]
[408274305,1773342564784,-1000.0,5.488e-05,2]
[408274306,1773342564804,-1000.0,5.488e-05,2]
[408274307,1773342564825,-1000.0,5.488e-05,2]
[408274308,1773342564844,-1000.0,5.488e-05,2]
[408274309,1773342564867,-1000.0,5.488e-05,2]
[408274310,1773342564889,-864.0,5.609e-05,2]
[408274311,1773342564909,-500.0,5.627e-05,2]
[408274312,1773342564929,-371.20201727,5.627e-05,2]
[408274313,1773342564950,-500.0,5.627e-05,2]
[408274314,1773342564970,-500.0,5.627e-05,2]
[408274315,1773342564992,-2557.46219504,5.632e-05,2]
[408274316,1773342565011,-1000.0,5.797e-05,2]
[408274317,1773342565032,-1000.0,5.797e-05,2]
[408274318,1773342565051,-1000.0,5.808e-05,2]
[408274319,1773342565071,-1000.0,5.808e-05,2]
[408274320,1773342565090,-1000.0,5.808e-05,2]
[408274321,1773342565110,-823.0,5.931e-05,2]
[408274322,1773342565130,-3292.0,5.932e-05,2]
[408274323,1773342565149,-1500.0,6.036e-05,2]
[408274324,1773342565168,-1500.0,6.036e-05,2]
[408274325,1773342565187,-1500.0,6.036e-05,2]
[408274326,1773342565206,-1500.0,6.036e-05,2]
[408274327,1773342565225,-1500.0,6.036e-05,2]
[408274328,1773342565244,-1500.0,6.036e-05,2]
[408274329,1773342565265,-1000.0,6.17e-05,2]
[408274330,1773342565285,-1000.0,6.175e-05,2]
[408274331,1773342565304,-1000.0,6.175e-05,2]
[408274332,1773342565324,-1000.0,6.175e-05,2]
[408274333,1773342565346,-3824.61048083,6.264e-05,2]
[408274334,1773342565366,-1500.0,6.344e-05,2]
[408274335,1773342565386,-1500.0,6.344e-05,2]
[408274336,1773342565406,-186.65576813,6.346e-05,2]
[408274337,1773342565426,-1500.0,6.356e-05,2]
[408274338,1773342565446,-1500.0,6.356e-05,2]
[408274339,1773342565466,-1500.0,6.356e-05,2]
[408274340,1773342565488,-1152.0,6.524e-05,2]
[408274341,1773342565509,-180.0,6.525e-05,2]
[408274342,1773342565529,-172.37684368,6.538e-05,2]
[408274343,1773342565550,-2000.0,6.584e-05,2]
[408274344,1773342565569,-2000.0,6.584e-05,2]
[408274345,1773342565589,-2000.0,6.584e-05,2]
[408274346,1773342565609,-2000.0,6.584e-05,2]
[408274347,1773342565629,-2000.0,6.584e-05,2]
[408274348,1773342565649,-2000.0,6.584e-05,2]
[408274349,1773342565670,-213.842658,6.722e-05,2]
[408274350,1773342565690,-1500.0,6.723e-05,2]
[408274351,1773342565711,-1500.0,6.723e-05,2]
[408274352,1773342565731,-609.13112128,6.723e-05,2]
[408274353,1773342565754,-1000.0,6.787e-05,2]
[408274354,1773342565775,-244.0,6.787e-05,2]
[408274355,1773342565795,-2000.0,6.892e-05,2]
[408274356,1773342565814,-2000.0,6.892e-05,2]
[408274357,1773342565837,-3610.59996569,6.896e-05,2]
[408274370,1773342632210,-500.0,4.94e-05,2]
[408274372,1773342632219,-200.499995,4.94e-05,2]
[408274375,1773342632231,-299.500005,4.94e-05,2]
[408274377,1773342632240,-295.82926348,5.488e-05,2]
[408274379,1773342632250,-1000.0,5.488e-05,2]
[408274380,1773342632259,-1500.0,6.036e-05,2]
[408274382,1773342632268,-557.09342282,6.584e-05,2]
[408274386,1773342632290,-1096.92311405,6.584e-05,2]
[408274388,1773342632299,-5000.0,6.827e-05,2]
[408274389,1773342632309,-1128.24800107,6.896e-05,2]
[408274392,1773342632319,-151.0,6.896e-05,2]
[408274394,1773342632328,-151.0,6.896e-05,2]
[408274395,1773342632338,-151.0,6.896e-05,2]
[408274397,1773342632348,-151.0,6.896e-05,2]
[408274398,1773342632357,-210.42414061,6.896e-05,2]
[408274399,1773342632367,-300.0,6.903e-05,2]
[408274400,1773342632377,-422.11340507,6.904e-05,2]
[408274413,1773342638330,-1577.88659493,6.904e-05,2]
[408274414,1773342638339,-1002.33688201,6.909e-05,2]
[408274415,1773342638349,-910.90062182,6.911e-05,2]
[408274416,1773342638359,-300.0,7.041e-05,2]
[408274417,1773342638368,-300.0,7.041e-05,2]
[408274418,1773342638378,-300.0,7.041e-05,2]
[408274419,1773342638388,-300.0,7.041e-05,2]
[408274420,1773342638398,-300.0,7.041e-05,2]
[408274421,1773342638408,-300.0,7.041e-05,2]
[408274422,1773342638417,-300.0,7.041e-05,2]
[408274423,1773342638427,-300.0,7.041e-05,2]
[408274424,1773342638436,-300.0,7.041e-05,2]
[408274425,1773342638446,-300.0,7.041e-05,2]
[408274426,1773342638455,-300.0,7.041e-05,2]
[408274427,1773342638464,-300.0,7.041e-05,2]
[408274428,1773342638474,-300.0,7.041e-05,2]
[408274429,1773342638483,-300.0,7.041e-05,2]
[408274430,1773342638493,-300.0,7.041e-05,2]
[408274431,1773342638502,-361.20248,7.063e-05,2]
[408274432,1773342638512,-642.13774223,7.063e-05,2]
[408274433,1773342638523,-500.0,7.074e-05,2]
[408274434,1773342638533,-500.0,7.074e-05,2]
[408274435,1773342638543,-500.0,7.074e-05,2]
[408274436,1773342638552,-2500.0,7.132e-05,2]
[408274437,1773342638561,-2500.0,7.132e-05,2]
[408274438,1773342638570,-1220.13419402,7.132e-05,2]
[408274439,1773342638580,-2500.0,7.132e-05,2]
[408274440,1773342638590,-2500.0,7.132e-05,2]
[408274441,1773342638599,-2500.0,7.132e-05,2]
[408274442,1773342638608,-600.0,7.181e-05,2]